Cogmind - Beta 14 @@@ ROGUE MODE // 2025.03.18 @ 15:38:31 Player: canerib Result: Destroyed by H-77 Assassin with Coil Gun Performance ------------- Evolutions (7) 3500 Regions Visited (14) 2800 Robots Destroyed (36) 180 Value Destroyed (884) 884 Prototype IDs (3) 60 Alien Tech Used (0) 0 Bonus (1439) 1439 TOTAL SCORE: 8863 Bonus ------- Follower Combat Kills 100 Entered DSFs 500 Hacked Protovariant 500 Scanned by Researcher 500 Friendly Fire -161 Cogmind --------- Core Integrity 0/1300 Matter 300/300 Energy 98/100 System Corruption 1% Temperature Cool (0) Movement Core (50) Location -3/Testing Parts ------- > --- POWER (3) -------- (None) > --- PROPULSION (7) --- (None) > --- UTILITY (9) ------ Spectral Analyzer Advanced Signal Interpreter > --- WEAPON (2) ------- (None) > --- INVENTORY (5) ---- Antimatter Reactor Power Shielding Advanced Datajack Peak State ------------ > --- POWER ------------ Antimatter Reactor Light Antimatter Reactor > --- PROPULSION ------- Xenon Bombardment Thruster Xenon Bombardment Thruster Xenon Bombardment Thruster Xenon Bombardment Thruster Nuclear Pulse Thruster Nuclear Pulse Thruster Nuclear Pulse Thruster > --- UTILITY ---------- Improved Heat Sink Medium Storage Unit Advanced Weight Redist. System Advanced Sensor Array Advanced Signal Interpreter Transmission Jammer Advanced ECM Suite Improved Hacking Suite > --- WEAPON ----------- Light Assault Rifle Remote Datajack > --- INVENTORY -------- Light Fission Core Micro Fission Core Energy Well Stasis Canceller Power Shielding Improved Propulsion Shielding Gatling Laser Heavy Missile Launcher Advanced Datajack [Rating: 84] Favorites ----------- Power Ion Engine Engine Ion Engine Power Core Micro Fission Core Reactor Antimatter Reactor Propulsion Xenon Bombardment Thruster Treads Light Treads Leg Armored Leg Wheel Wheel Hover Unit Linear Gravjet Flight Unit Xenon Bombardment Thruster Utility Medium Storage Unit Device Improved Heat Sink Storage Medium Storage Unit Processor Advanced Signal Interpreter Hackware Improved Hacking Suite Protection Improved Propulsion Shielding Weapon Light Assault Rifle Energy Gun Field Laser Ballistic Gun Light Assault Rifle Launcher Heavy Missile Launcher Special Weapon Remote Datajack Special Melee Weapon Advanced Datajack Build | -11 -10 -9 -8 -7 -7 -7 -6 -6 -5 -4 -4 -4 -3 -3 ------- Run | Yrd Mat Mat Mat Fac Was Fac Fac DSF Fac Fac Upp Upp Res Tes Slots Evolved 14 | . . 2 2 2 . . 2 . 2 2 . . 2 . Power 2 | . . . . . . . . . 1 . . . 1 . Propulsion 5 | . . . 2 1 . . . . 1 1 . . . . Utility 7 | . . 2 . 1 . . 2 . . 1 . . 1 . Weapon . | . . . . . . . . . . . . . . . Parts Attached 93 | 7 1 3 35 3 1 . 8 3 6 7 3 1 2 13 Power 17 | 1 . . 4 1 1 . 2 . 1 2 1 . 1 3 Engine 6 | 1 . . 4 1 . . . . . . . . . . Core 4 | . . . . . . . 1 . 1 . . . 1 1 Reactor 7 | . . . . . 1 . 1 . . 2 1 . . 2 Propulsion 29 | 2 . . 18 . . . 1 1 2 1 1 . . 3 Treads 16 | 2 . . 14 . . . . . . . . . . . Leg 1 | . . . . . . . 1 . . . . . . . Wheel 1 | . . . . . . . . . . . . . . 1 Hover 2 | . . . . . . . . . . . . . . 2 Flight 9 | . . . 4 . . . . 1 2 1 1 . . . Utility 30 | 2 1 2 5 1 . . 5 2 2 4 . 1 1 4 Device 17 | 1 . 2 2 1 . . 3 1 2 3 . 1 1 . Storage 4 | 1 1 . 1 . . . . . . . . . . 1 Processor 4 | . . . 2 . . . . 1 . . . . . 1 Hackware 3 | . . . . . . . . . . 1 . . . 2 Protection 2 | . . . . . . . 2 . . . . . . . Artifact . | . . . . . . . . . . . . . . . Weapon 17 | 2 . 1 8 1 . . . . 1 . 1 . . 3 Energy Gun 7 | . . 1 5 1 . . . . . . . . . . Energy Cannon . | . . . . . . . . . . . . . . . Ballistic Gun 5 | 2 . . 3 . . . . . . . . . . . Ballistic Cannon . | . . . . . . . . . . . . . . . Launcher 2 | . . . . . . . . . . . 1 . . 1 Special Weapon 2 | . . . . . . . . . 1 . . . . 1 Impact Weapon . | . . . . . . . . . . . . . . . Slashing Weapon . | . . . . . . . . . . . . . . . Piercing Weapon . | . . . . . . . . . . . . . . . Special Melee Weapon 1 | . . . . . . . . . . . . . . 1 Unidentified Prototypes 1 | . . . . . . . . . . . . . . 1 Parts Lost 26 | . . 1 3 . . . . 1 . 1 . 1 3 16 Power 1 | . . . 1 . . . . . . . . . . . Propulsion 11 | . . . 1 . . . . . . . . 1 2 7 Utility 10 | . . . . . . . . 1 . 1 . . 1 7 Weapon 4 | . . 1 1 . . . . . . . . . . 2 Highest Loss Streak 8 | . . 1 1 . . . . 1 . 1 . 1 2 8 To Critical Strikes . | . . . . . . . . . . . . . . . Average Slot Usage (%) 87 | . 100 99 93 91 92 92 83 91 95 98 84 86 67 25 Engine 4 | . 14 11 8 7 3 . . . . . . . . . Core 1 | . . . . . . . 3 . 4 4 . . 2 . Reactor 2 | . . . . . 3 7 2 6 5 5 9 10 4 . Treads 12 | . 28 22 30 . . . . . . . . . . . Flight 15 | . . . . 30 30 30 26 27 33 35 35 33 23 1 Device 20 | . 14 33 21 22 23 23 20 23 21 22 21 26 22 8 Storage 7 | . 14 11 9 7 7 7 6 6 5 5 5 5 4 . Processor 4 | . . . 4 7 7 7 6 8 5 5 5 5 4 8 Hackware 1 | . . . . . . . . . . 5 5 5 4 3 Protection 1 | . . . . . . . 5 6 5 2 . . . . Energy Gun 3 | . . . 10 7 7 7 3 . . . . . . . Ballistic Gun 8 | . 28 20 7 7 7 7 6 6 5 5 . . . . Peak Build Rating 84 | 7 7 12 34 39 43 44 52 57 71 84 79 77 79 61 Average Rating 36 | 5 7 11 21 36 40 43 42 53 67 80 73 75 65 30 On Entrance 42 | . 7 7 12 33 39 43 44 52 57 71 70 74 73 54 Naked Turns . | . . . . . . . . . . . . . . . Heaviest Build 48 | 14 19 22 30 27 33 33 33 32 40 48 40 40 40 30 Greatest Support 82 | 40 40 40 82 33 33 33 33 39 45 51 40 49 43 31 Greatest Overweight (x) 4 | . . . 4 . . . . . . . . . . 3 Average Overweight (x) . | . . . . . . . . . . . . . . . Largest Inventory Capacity 10 | 8 10 10 10 10 10 10 10 10 10 10 10 10 10 10 Average Capacity 9 | 7 9 10 10 10 10 10 10 10 10 10 10 10 10 5 Most Carried 10 | 3 6 7 10 10 10 10 10 10 9 10 10 10 10 10 Average Carried 7 | 1 4 6 9 8 10 9 9 9 7 7 9 10 10 4 Final Capacity 10 | 8 10 10 10 10 10 10 10 10 10 10 10 10 10 5 Final Carried 10 | 3 6 7 8 10 10 10 10 10 8 10 10 10 10 3 Class Distribution -------------------- 35% | Mutant 33% | Sprinter 18% | Scavenger-Mutant 8% | Infiltrator-Sprinter 3% | Infiltrator-Mutant Dominant Class ---------------- Mutant | -10/Materials Mutant | -9/Materials Scavenger-Mutant | -8/Materials Sprinter | -7/Factory Sprinter | -7/Waste Sprinter | -7/Factory Sprinter | -6/Factory Sprinter | -6/DSF Sprinter | -5/Factory Sprinter | -4/Factory Infiltrator-Sprinter | -4/Upper Caves Infiltrator-Sprinter | -4/Upper Caves Infiltrator-Sprinter | -3/Research Mutant | -3/Testing Resources | -11 -10 -9 -8 -7 -7 -7 -6 -6 -5 -4 -4 -4 -3 -3 ----------- Run | Yrd Mat Mat Mat Fac Was Fac Fac DSF Fac Fac Upp Upp Res Tes Matter Collected 1240 | 295 41 67 347 115 20 4 . . 66 . 184 63 . 38 Remotely . | . . . . . . . . . . . . . . . Salvage Created 1210 | 82 89 198 708 47 . 26 . . . . 60 . . . Parts 91 | 5 6 13 55 4 . 3 . . . . 5 . . . Haulers Intercepted 3 | . . . 2 1 . . . . . . . . . . Recyclers Shooed 2 | 1 . . 1 . . . . . . . . . . . Parts Field Recycled . | . . . . . . . . . . . . . . . Retrieved Matter . | . . . . . . . . . . . . . . . Parts Self-Destructed 3 | . . . . . . . . . . . 3 . . . Prevented . | . . . . . . . . . . . . . . . Kills | -11 -10 -9 -8 -7 -7 -7 -6 -6 -5 -4 -4 -4 -3 -3 ------- Run | Yrd Mat Mat Mat Fac Was Fac Fac DSF Fac Fac Upp Upp Res Tes Combat Hostiles Destroyed 27 | . 2 5 15 . . . . . . . 5 . . . Guns 22 | . 2 5 15 . . . . . . . . . . . AOE 5 | . . . . . . . . . . . 5 . . . Classes Destroyed 7 | 2 1 1 3 . . . . . . . . . . . Tunneler 1 | 1 . . . . . . . . . . . . . . Hauler 3 | . . . 2 1 . . . . . . . . . . Recycler 2 | 1 . . 1 . . . . . . . . . . . Watcher 2 | . . . 1 . . 1 . . . . . . . . Swarmer 14 | . . 1 7 1 . . . . . . 5 . . . Grunt 8 | . 2 4 2 . . . . . . . . . . . Sentry 6 | . . . 6 . . . . . . . . . . . Best Kill Streak 5 | 1 2 3 5 1 . 1 . . . . 5 . . . Combat Bots Only 5 | . 2 3 4 . . . . . . . 5 . . . Max Kills in Single Turn 3 | 1 1 1 1 1 . 1 . . . . 3 . . . Gunslinging . | . . . . . . . . . . . . . . . Exploded 3 | . . . . . . . . . . . 3 . . . Melee . | . . . . . . . . . . . . . . . Uniques/NPCs Destroyed . | . . . . . . . . . . . . . . . Combat | -11 -10 -9 -8 -7 -7 -7 -6 -6 -5 -4 -4 -4 -3 -3 -------- Run | Yrd Mat Mat Mat Fac Was Fac Fac DSF Fac Fac Upp Upp Res Tes Hostile Shots Fired 344 | . 9 46 68 . . 2 . 12 . 14 9 7 7 170 Missed 130 | . 2 11 16 . . . . 5 . 9 4 4 2 77 Damage Taken 3557 | . 101 392 643 . . 30 . 107 . 99 72 64 98 1951 Core 1491 | . 25 12 105 . . . . 22 . . 16 . . 1311 Absorbed by Shields 10 | . . . . . . . . . . . . . 10 . Redirected to Shielding 5 | . . . . . . . . 5 . . . . . . Regen/Repaired (Parts) 114 | . . . . . . . 97 . 17 . . . . . Core Remaining (%) 95 | 100 90 97 80 . . 100 . 97 100 . . 98 . . Volleys Fired 103 | 7 7 19 55 5 . 4 . . 3 . 2 . . 1 Largest 2 | 2 2 2 2 2 . 2 . . 1 . 1 . . 1 Hottest 128 | 40 40 85 128 100 . 100 . . 5 . 39 . . 5 Shots Fired 187 | 14 14 32 103 10 . 8 . . 3 . 2 . . 1 Gun 181 | 14 14 32 103 10 . 8 . . . . . . . . Cannon . | . . . . . . . . . . . . . . . Launcher 2 | . . . . . . . . . . . 2 . . . Special 4 | . . . . . . . . . 3 . . . . 1 Kinetic 108 | 14 14 31 40 5 . 4 . . . . . . . . Thermal 73 | . . 1 63 5 . 4 . . . . . . . . Explosive 2 | . . . . . . . . . . . 2 . . . Electromagnetic . | . . . . . . . . . . . . . . . Robot Hit Streak 12 | 5 8 10 12 8 . 3 . . 4 . 6 . . 7 Robot Miss Streak 4 | 1 1 2 4 1 . 3 . . . . . . . . Penetration Max . | . . . . . . . . . . . . . . . Secondary Targets 1 | . . . 1 . . . . . . . . . . . Max Gunslinging Chain 1 | . . . 1 . . . . . . . . . . . Shots Hit Robots 131 | 9 9 23 72 7 . 5 . . 3 . 2 . . 1 Core Hits 73 | 4 5 12 38 4 . 3 . . . . 6 . . 1 Critical Kills 1 | . . . 1 . . . . . . . . . . . Critical Parts Destroyed . | . . . . . . . . . . . . . . . Critical Strikes 1 | . . . 1 . . . . . . . . . . . Destroy 1 | . . . 1 . . . . . . . . . . . Melee Attacks . | . . . . . . . . . . . . . . . Impact . | . . . . . . . . . . . . . . . Slashing . | . . . . . . . . . . . . . . . Piercing . | . . . . . . . . . . . . . . . Sneak Attacks . | . . . . . . . . . . . . . . . Combat Hostiles . | . . . . . . . . . . . . . . . Follow-up Attacks . | . . . . . . . . . . . . . . . Damage Inflicted 2111 | 103 95 241 1058 156 . 60 . . . . 367 . . 31 Guns 1713 | 103 95 241 1058 156 . 60 . . . . . . . . Cannons . | . . . . . . . . . . . . . . . Explosions 367 | . . . . . . . . . . . 367 . . . Melee . | . . . . . . . . . . . . . . . Ramming 31 | . . . . . . . . . . . . . . 31 Kinetic 818 | 103 95 225 350 16 . 29 . . . . . . . . Thermal 895 | . . 16 708 140 . 31 . . . . . . . . Explosive 367 | . . . . . . . . . . . 367 . . . Electromagnetic . | . . . . . . . . . . . . . . . Impact . | . . . . . . . . . . . . . . . Slashing . | . . . . . . . . . . . . . . . Piercing . | . . . . . . . . . . . . . . . Highest Corruption 1 | . . . . . . . . . . . . . . 1 Average Corruption 1 | . . . . . . . . . . . . . . 1 Corruption Purged . | . . . . . . . . . . . . . . . Corruption Blocked . | . . . . . . . . . . . . . . . Overload Shots . | . . . . . . . . . . . . . . . Overflow Damage 7 | . . . . . . . . . . . 7 . . . Projectiles . | . . . . . . . . . . . . . . . Explosions 7 | . . . . . . . . . . . 7 . . . Melee . | . . . . . . . . . . . . . . . Knockbacks . | . . . . . . . . . . . . . . . Impact . | . . . . . . . . . . . . . . . Kinetic . | . . . . . . . . . . . . . . . Secondary . | . . . . . . . . . . . . . . . Self-Inflicted Damage 13 | . . . . . . . . . . . . . . 13 Shots . | . . . . . . . . . . . . . . . Rammed 8 | . . . . . . . . . . . . . . 8 Targets Rammed 8 | . . . . . . . . . . . . . . 8 Kicked . | . . . . . . . . . . . . . . . Crushed . | . . . . . . . . . . . . . . . Highest Temperature 285 | . 9 18 54 . . 16 . . 53 97 285 181 . . Average Temperature 59 | . 9 13 13 . . 7 . . 27 29 125 100 . . Received Heat Transfer 717 | . 60 165 198 . . 18 . . . 27 . . 27 222 Siege Activations . | . . . . . . . . . . . . . . . Robots Corrupted . | . . . . . . . . . . . . . . . Combat Hostiles . | . . . . . . . . . . . . . . . Parts Fried . | . . . . . . . . . . . . . . . Impact Corruptions . | . . . . . . . . . . . . . . . Robots Melted . | . . . . . . . . . . . . . . . Combat Hostiles . | . . . . . . . . . . . . . . . Parts Melted 2 | . . . 2 . . . . . . . . . . . Heat Transferred 1946 | . . 37 1509 325 . 75 . . . . . . . . Parts Sabotaged . | . . . . . . . . . . . . . . . Parts Stolen . | . . . . . . . . . . . . . . . Parts Stripped . | . . . . . . . . . . . . . . . Power Chain Reactions . | . . . . . . . . . . . . . . . Alert | -11 -10 -9 -8 -7 -7 -7 -6 -6 -5 -4 -4 -4 -3 -3 ------- Run | Yrd Mat Mat Mat Fac Was Fac Fac DSF Fac Fac Upp Upp Res Tes Peak Influence 279 | 10 74 65 236 72 25 83 63 15 7 50 . . 128 279 Initial 72 | . 6 31 27 50 25 17 40 3 7 2 . . 53 72 Average 57 | 2 31 21 103 57 25 54 43 6 6 15 . . 62 143 Maximum Alert Level 1 | . . . 1 . . . . . . . . . . 1 Low Security (%) 96 | 100 100 100 92 100 100 100 100 100 100 100 . . 100 81 Level 1 3 | . . . 7 . . . . . . . . . . 18 Level 2 . | . . . . . . . . . . . . . . . Level 3 . | . . . . . . . . . . . . . . . Level 4 . | . . . . . . . . . . . . . . . Level 5 . | . . . . . . . . . . . . . . . High Security . | . . . . . . . . . . . . . . . Max Security . | . . . . . . . . . . . . . . . Squads Dispatched 13 | . . . 1 . . 2 . 1 . 2 . . . 7 Investigation 4 | . . . 1 . . 1 . . . 1 . . . 1 Extermination 1 | . . . . . . . . . . 1 . . . . Reinforcement 7 | . . . . . . 1 . 1 . . . . . 5 Assault 1 | . . . . . . . . . . . . . . 1 Garrison . | . . . . . . . . . . . . . . . Intercept . | . . . . . . . . . . . . . . . Searches Triggered . | . . . . . . . . . . . . . . . Construction Impeded 1 | . . . . . . . . . . . . . . 1 Haulers Reinforced . | . . . . . . . . . . . . . . . Active Scanning Responses . | . . . . . . . . . . . . . . . Cargo Convoy Interrupts . | . . . . . . . . . . . . . . . Stealth | -11 -10 -9 -8 -7 -7 -7 -6 -6 -5 -4 -4 -4 -3 -3 --------- Run | Yrd Mat Mat Mat Fac Was Fac Fac DSF Fac Fac Upp Upp Res Tes Distress Signals 4 | . . 2 1 . . . . . . . . . . 1 Communications Jammed 1 | . . . . . . . . . . . . . 1 . Distress Signals 1 | . . . . . . . . . . . . . 1 . Times Spotted 83 | . 3 10 21 1 1 4 . 3 . 7 5 1 6 21 Peak Tracking Total 8 | . 2 5 6 1 1 2 . 3 . 5 3 1 4 8 Tactical Retreats 8 | . . . . . . . . 1 . 2 . . 1 4 Traps | -11 -10 -9 -8 -7 -7 -7 -6 -6 -5 -4 -4 -4 -3 -3 ------- Run | Yrd Mat Mat Mat Fac Was Fac Fac DSF Fac Fac Upp Upp Res Tes Traps Triggered 9 | . . . 5 1 . 1 . 1 . . . . 1 . Indirectly . | . . . . . . . . . . . . . . . Trap Hack Attempts . | . . . . . . . . . . . . . . . Triggered . | . . . . . . . . . . . . . . . Disarmed 4 | . . 4 . . . . . . . . . . . . Reprogrammed 1 | . . . . . . . . . . . . . . 1 Reused 1 | . . . . . . . . . . . . . . 1 Traps Extracted . | . . . . . . . . . . . . . . . Installed . | . . . . . . . . . . . . . . . Triggered 2 | . . . . . . . . . . . 1 . . 1 Machines | -11 -10 -9 -8 -7 -7 -7 -6 -6 -5 -4 -4 -4 -3 -3 ---------- Run | Yrd Mat Mat Mat Fac Was Fac Fac DSF Fac Fac Upp Upp Res Tes Machines Disabled . | . . . . . . . . . . . . . . . Max in Single Turn . | . . . . . . . . . . . . . . . Machines Repaired . | . . . . . . . . . . . . . . . Machines Dismantled . | . . . . . . . . . . . . . . . Machines Sabotaged . | . . . . . . . . . . . . . . . Overloaded Fab Kills . | . . . . . . . . . . . . . . . Hacking | -11 -10 -9 -8 -7 -7 -7 -6 -6 -5 -4 -4 -4 -3 -3 --------- Run | Yrd Mat Mat Mat Fac Was Fac Fac DSF Fac Fac Upp Upp Res Tes Machines Accessed 36 | . 1 4 4 4 . 3 5 . 1 5 . . . 9 Terminals 23 | . 1 4 3 1 . 2 2 . . 2 . . . 8 Fabricators 3 | . . . . 1 . . . . . 1 . . . 1 Repair Stations 6 | . . . 1 1 . 1 1 . 1 1 . . . . Recycling Units . | . . . . . . . . . . . . . . . Scanalyzers 3 | . . . . . . . 2 . . 1 . . . . Garrison Access 1 | . . . . 1 . . . . . . . . . . Total Hacks 102 | . 4 15 14 4 . 8 19 . 4 11 . . . 23 Successful 48 | . 3 4 7 1 . 1 12 . 4 3 . . . 13 Failed 54 | . 1 11 7 3 . 7 7 . . 8 . . . 10 Catastrophic 14 | . . . 2 2 . 2 2 . . 3 . . . 3 Database Lockouts . | . . . . . . . . . . . . . . . Manual 26 | . 3 4 2 . . 4 2 . . 4 . . . 7 Terminals 70 | . 4 15 12 1 . 6 4 . . 7 . . . 21 Fabricators 4 | . . . . 1 . . . . . 1 . . . 2 Repair Stations 22 | . . . 2 1 . 2 11 . 4 2 . . . . Recycling Units . | . . . . . . . . . . . . . . . Scanalyzers 5 | . . . . . . . 4 . . 1 . . . . Garrison Access 1 | . . . . 1 . . . . . . . . . . Terminal Hacks 23 | . 3 3 6 . . . 1 . . 1 . . . 9 Part Schematic 1 | . . . . . . . . . . . . . . 1 Open Door 1 | . . . . . . . . . . . . . . 1 Open DSF 1 | . . . . . . . 1 . . . . . . . Level Access Points 2 | . 1 . . . . . . . . . . . . 1 Branch Access Points 2 | . 1 . 1 . . . . . . . . . . . Emergency Access Points 1 | . . . 1 . . . . . . . . . . . Unreport Threat 3 | . . 2 1 . . . . . . . . . . . Disarm Traps 1 | . . 1 . . . . . . . . . . . . Reprogram Traps 1 | . . . . . . . . . . . . . . 1 Dispatch Records 1 | . . . 1 . . . . . . . . . . . Security Status 1 | . . . . . . . . . . . . . . 1 Surveillance Status 1 | . . . 1 . . . . . . . . . . . Recall Investigation 1 | . . . . . . . . . . . . . . 1 Zone Layout 5 | . 1 . 1 . . . . . . 1 . . . 2 Protovariant Controls 1 | . . . . . . . . . . . . . . 1 Fabricator Hacks 2 | . . . . 1 . . . . . . . . . 1 Network Status 1 | . . . . 1 . . . . . . . . . . Load Schematic 1 | . . . . . . . . . . . . . . 1 Repair Station Hacks 16 | . . . 1 . . . 10 . 4 1 . . . . Scan Component 9 | . . . 1 . . . 5 . 2 1 . . . . Repair 7 | . . . . . . . 5 . 2 . . . . . Recycling Unit Hacks . | . . . . . . . . . . . . . . . Scanalyzer 1 | . . . . . . . 1 . . . . . . . Insert Component 1 | . . . . . . . 1 . . . . . . . Garrison Access Hacks . | . . . . . . . . . . . . . . . Unauthorized Hacks 6 | . . 1 . . . 1 . . . 1 . . . 3 Terminals 6 | . . 1 . . . 1 . . . 1 . . . 3 Assimilate 2 | . . . . . . . . . . . . . . 2 Botnet 4 | . . 1 . . . 1 . . . 1 . . . 1 Fabricators . | . . . . . . . . . . . . . . . Repair Stations . | . . . . . . . . . . . . . . . Recycling Units . | . . . . . . . . . . . . . . . Scanalyzers . | . . . . . . . . . . . . . . . Garrison Access . | . . . . . . . . . . . . . . . Data Cores Recovered . | . . . . . . . . . . . . . . . Used . | . . . . . . . . . . . . . . . Hacking Detections 33 | . 1 4 4 3 . 3 4 . 1 5 . . . 8 Full Trace Events 3 | . . . . . . 1 . . . 1 . . . 1 Feedback Events 1 | . . . . . . . . . . . . . . 1 Corruption 1 | . . . . . . . . . . . . . . 1 Feedback Blocked . | . . . . . . . . . . . . . . . Robot Schematics Acquired 3 | . . . . . . . . . . . . . . 3 Robots Built . | . . . . . . . . . . . . . . . Authchips . | . . . . . . . . . . . . . . . Time . | . . . . . . . . . . . . . . . Total Robot Build Rating . | . . . . . . . . . . . . . . . Part Schematics Acquired 2 | . . . . . . . . . . . . . . 2 Parts Built . | . . . . . . . . . . . . . . . Authchips . | . . . . . . . . . . . . . . . Time . | . . . . . . . . . . . . . . . Total Part Build Rating . | . . . . . . . . . . . . . . . Parts Repaired 7 | . . . . . . . 5 . 2 . . . . . Time 320 | . . . . . . . 232 . 88 . . . . . Parts Recycled . | . . . . . . . . . . . . . . . Recycled Matter . | . . . . . . . . . . . . . . . Retrieved Matter . | . . . . . . . . . . . . . . . Retrieved Components . | . . . . . . . . . . . . . . . Parts Scanalyzed 1 | . . . . . . . 1 . . . . . . . Part Schematics Acquired . | . . . . . . . . . . . . . . . Parts Damaged . | . . . . . . . . . . . . . . . Bothacking | -11 -10 -9 -8 -7 -7 -7 -6 -6 -5 -4 -4 -4 -3 -3 ------------ Run | Yrd Mat Mat Mat Fac Was Fac Fac DSF Fac Fac Upp Upp Res Tes Used RIF Installer . | . . . . . . . . . . . . . . . Robots Hacked . | . . . . . . . . . . . . . . . Non-combat . | . . . . . . . . . . . . . . . Combat . | . . . . . . . . . . . . . . . Robot Hacks Applied . | . . . . . . . . . . . . . . . Relay Couplers Released . | . . . . . . . . . . . . . . . Fabnet Peak Effective % . | . . . . . . . . . . . . . . . Robots Rewired 3 | . . . . 1 . . . . 1 . . . . 1 Allies Hacked . | . . . . . . . . . . . . . . . Hacks Repelled . | . . . . . . . . . . . . . . . Allies | -11 -10 -9 -8 -7 -7 -7 -6 -6 -5 -4 -4 -4 -3 -3 -------- Run | Yrd Mat Mat Mat Fac Was Fac Fac DSF Fac Fac Upp Upp Res Tes Total Allies 4 | . . . . 1 . . . . 1 . . . . 2 Largest Group 1 | . . . . 1 . . . . 1 . . . . 1 Highest-Rated Group 166 | . . . . 12 . . . . 29 . . . . 166 Highest-Rated Ally 166 | . . . . 12 . . . . 29 . . . . 166 Total Orders . | . . . . . . . . . . . . . . . Ally Attacks 11 | . . . . . . . . . 2 . . . . 9 Total Damage 737 | . . . . . . . . . 19 . . . . 718 Kills 4 | . . . . . . . . . . . . . . 4 Allies Corrupted . | . . . . . . . . . . . . . . . Allies Melted . | . . . . . . . . . . . . . . . Intel | -11 -10 -9 -8 -7 -7 -7 -6 -6 -5 -4 -4 -4 -3 -3 ------- Run | Yrd Mat Mat Mat Fac Was Fac Fac DSF Fac Fac Upp Upp Res Tes Robot Analysis Total . | . . . . . . . . . . . . . . . Derelict Logs Recovered 2 | . . . . . . . . . . . 1 1 . . Drone Launches . | . . . . . . . . . . . . . . . Drone Recoveries . | . . . . . . . . . . . . . . . Exploration | -11 -10 -9 -8 -7 -7 -7 -6 -6 -5 -4 -4 -4 -3 -3 ------------- Run | Yrd Mat Mat Mat Fac Was Fac Fac DSF Fac Fac Upp Upp Res Tes Turns Passed 3851 | 118 384 283 955 146 54 172 516 98 169 410 128 60 86 272 Spaces Moved 4069 | 56 209 136 428 250 137 391 355 137 242 523 370 238 173 424 Core 232 | 3 . . . . . . . . . . . . . 229 Treads 811 | 53 209 136 413 . . . . . . . . . . . Legs . | . . . . . . . . . . . . . . . Wheels 24 | . . . . . . . . . . . . . . 24 Hover 13 | . . . . . . . . . . . . . . 13 Flight 2989 | . . . 15 250 137 391 355 137 242 523 370 238 173 158 Fastest Speed 21 | 50 160 160 31 31 31 31 31 28 25 22 21 21 24 29 Average Speed 56 | 154 160 160 158 31 31 31 32 36 25 22 21 22 28 48 Slowest Speed 360 | 160 160 160 360 31 31 31 41 41 25 25 25 24 32 200 Overloaded Moves . | . . . . . . . . . . . . . . . Propulsion Burnouts . | . . . . . . . . . . . . . . . Robots Hopped 44 | . . . . 12 . 3 3 2 . 9 1 1 3 10 Cave-ins Triggered . | . . . . . . . . . . . . . . . Exploration Rate (%) 28 | 4 27 22 35 10 77 13 13 85 6 12 49 19 5 55 Regions Visited 14 Branch Regions 3 Pre-discovered Areas 1 | . . . . . . . . . . . 1 . . . Known Exits Taken 9 | . 1 . 1 . . 1 1 . 1 1 1 1 1 . Unknown Exits Taken 2 | 1 . 1 . . . . . . . . . . . . Scrap Searched 5 | . . . . . . . . . . . 4 1 . . Spaces Dug . | . . . . . . . . . . . . . . . Terrain Destroyed 25 | . . . . . . . . . . . 25 . . . Melee . | . . . . . . . . . . . . . . . Projectile . | . . . . . . . . . . . . . . . AOE 25 | . . . . . . . . . . . 25 . . . Terrain Rammed . | . . . . . . . . . . . . . . . Walls Destroyed . | . . . . . . . . . . . . . . . Machines Disabled . | . . . . . . . . . . . . . . . Actions | -11 -10 -9 -8 -7 -7 -7 -6 -6 -5 -4 -4 -4 -3 -3 --------- Run | Yrd Mat Mat Mat Fac Was Fac Fac DSF Fac Fac Upp Upp Res Tes Total 5404 | 72 246 173 603 295 148 433 753 182 347 808 416 242 205 481 Wait 1046 | . 26 13 64 47 8 16 386 21 95 280 39 5 15 31 Move 3973 | 55 208 135 427 229 136 384 348 132 241 505 367 235 166 405 Hop 39 | . . . . 9 . 3 3 2 . 8 1 1 3 9 Pick Up 29 | 3 3 3 4 . 1 4 5 2 1 2 1 . . . Fast Attach 51 | 7 . 1 20 1 1 . 4 3 3 1 1 1 1 7 Attach 18 | . . 2 1 . . . 1 . 3 4 2 . . 5 Detach 8 | . . . 1 . . . . . . 4 1 . . 2 Swap 24 | . 1 . 14 2 . . 3 . . 2 . . 1 1 Drop 42 | . 1 . 17 . 2 4 3 4 1 2 2 . 2 4 Fire 103 | 7 7 19 55 5 . 4 . . 3 . 2 . . 1 Melee . | . . . . . . . . . . . . . . . Ram 8 | . . . . . . . . . . . . . . 8 Kick . | . . . . . . . . . . . . . . . Crush . | . . . . . . . . . . . . . . . Escape Stasis 57 | . . . . . . 18 . 18 . . . . 17 4 Rewire 6 | . . . . 2 . . . . . . . . . 4 Trap . | . . . . . . . . . . . . . . . Miscellaneous . | . . . . . . . . . . . . . . . Route ------- -11/Scrapyard -10/Materials (discovered 4 exits: *Mat x3 / Min) -9/Materials -8/Materials -7/Factory -7/Waste -7/Factory -6/Factory -6/DSF -5/Factory -4/Factory (discovered 2 exits: *Upp x2) -4/Upper Caves -4/Upper Caves -3/Research -3/Testing (discovered 1 exit: Res) History --------- Turn | Location | Event 20 | -11/Scrapyard | Discovered new exit (range 16) 119 | -11/Scrapyard | Entered Materials 145 | -10/Materials | Identified exit to Mines 145 | -10/Materials | Identified exit to Materials 320 | -10/Materials | Build established: Mutant 503 | -10/Materials | Entered another Materials area 503 | -9/Materials | Evolved 2 slots: Utility x2 729 | -9/Materials | Discovered new exit (range 16) 786 | -9/Materials | Entered another Materials area 786 | -8/Materials | Evolved 2 slots: Propulsion x2 1096 | -8/Materials | Build established: Scavenger-Mutant 1675 | -8/Materials | Discovered new exit (range 13) 1699 | -8/Materials | Identified exit to Factory 1741 | -8/Materials | Entered Factory 1741 | -7/Factory | Evolved 2 slots: Propulsion x1, Utility x1 1887 | -7/Factory | Sucked down chute 1887 | -7/Factory | Entered Waste 1887 | -7/Waste | The area was eerily silent 1917 | -7/Waste | A Compactor rumbled back to life 1917 | -7/Waste | Spotted C-40 Crusher 1927 | -7/Waste | Discovered new exit (range 15) 1941 | -7/Waste | Identified exit to Factory 1941 | -7/Waste | Entered Factory 2020 | -7/Factory | Build established: Sprinter 2060 | -7/Factory | Discovered new exit (range 14) 2102 | -7/Factory | Identified exit to Factory 2113 | -7/Factory | Entered another Factory area 2113 | -6/Factory | Evolved 2 slots: Utility x2 2239 | -6/Factory | Repaired Imp. Hacking Suite 2278 | -6/Factory | Repaired Imp. Sensor Array 2342 | -6/Factory | Repaired Antimatter Reactor 2381 | -6/Factory | Repaired Imp. Heat Sink 2425 | -6/Factory | Repaired Gatling Laser 2628 | -6/Factory | Identified exit to DSF 2629 | -6/Factory | Entered DSF 2676 | -6/DSF | Discovered new exit (range 11) 2690 | -6/DSF | Additional patrols routed to DSF 2727 | -6/DSF | Identified exit to Factory 2727 | -6/DSF | Entered Factory 2727 | -5/Factory | Evolved 2 slots: Power x1, Propulsion x1 2806 | -5/Factory | Repaired Transmission Jammer 2852 | -5/Factory | Repaired Xenon Bombardment Thruster 2885 | -5/Factory | Discovered new exit (range 16) 2896 | -5/Factory | Identified exit to Factory 2896 | -5/Factory | Entered another Factory area 2896 | -4/Factory | Evolved 2 slots: Propulsion x1, Utility x1 3265 | -4/Factory | Discovered new exit (range 11) 3278 | -4/Factory | Discovered new exit (range 14) 3288 | -4/Factory | Identified exit to Upper Caves 3306 | -4/Factory | Entered Upper Caves 3354 | -4/Upper Caves | Learned location of Armory (-4) 3425 | -4/Upper Caves | Discovered new exit (range 11) 3431 | -4/Upper Caves | Identified exit to Upper Caves 3434 | -4/Upper Caves | Entered another Upper Caves area 3449 | -4/Upper Caves | Encountered a Warlord checkpoint 3451 | -4/Upper Caves | Discovered new exit (range 16) 3454 | -4/Upper Caves | Identified exit to Research 3462 | -4/Upper Caves | Spotted B-86 Titan 3494 | -4/Upper Caves | Entered Research 3494 | -3/Research | Evolved 2 slots: Power x1, Utility x1 3528 | -3/Research | Build established: Infiltrator-Sprinter 3558 | -3/Research | Discovered new exit (range 13) 3562 | -3/Research | Identified exit to Testing 3580 | -3/Research | Entered Testing 3588 | -3/Testing | Spotted PX-XROGOZMOCK 3608 | -3/Testing | Found Prototype Processor 3608 | -3/Testing | Identified Spectral Analyzer 3632 | -3/Testing | Lost 4 parts (3n1u) 3650 | -3/Testing | Identified exit to Research 3693 | -3/Testing | Scanned by Researcher 3697 | -3/Testing | Core integrity fell below 50% 3724 | -3/Testing | Lost 8 parts (3n3u2w) 3731 | -3/Testing | Spotted Striker 3732 | -3/Testing | Spotted Striker 3780 | -3/Testing | Spotted PX-A502KVVL82 3785 | -3/Testing | Rewired PX-A502KVVL82 3808 | -3/Testing | Core integrity fell below 20% 3820 | -3/Testing | Protovariant out of control (PX-XROGOZMOCK) 3820 | -3/Testing | Unleashed a protovariant (PX-XROGOZMOCK) 3852 | -3/Testing | Destroyed by H-77 Assassin with Coil Gun Last Messages --------------- Downloaded coordinate data. Protovariant control network temporarily suspended. 03822_ ALERT: Hostile activity reported, dispatching reinforcements to area. 03823_ Penetrated by Slug. 03823_ Slug penetrates Door. 03823_ Slug penetrates Wall. 03823_ R-10 Processor collects Com. Wheel. 03825_ Penetrated by Slug. 03825_ Wheel destroyed. 03826_ Penetrated by Slug. 03826_ Imp. Hacking Suite destroyed. 03826_ Slug penetrates Wall. 03827_ R-10 Processor collects Wheel. 03830_ Slug penetrates Wall. 03844_ Slug penetrates Machine. 03852_ Slug penetrates Wall. 03852_ Penetrated by Slug. 03852_ Slug penetrates Wall. Map ----- +----------------------------------------------------+ | ?????????????????????????????????????????????????? | | ?????????????????????????????????????????????????? | | ?????????????????????????????????????????????????? | | ?????????????????????????????????????????????????? | | ?????????????????????????????????????????????????? | | ?????????????????????????????????????????????????? | | ?????????????????????????????????????????????????? | | ?????????????????????????????????????????????????? | | ?????????????????????????????????????????????????? | | ?????????????????????????????????????????????????? | | ?????????????????????????????????????????????????? | | ?????????????????????????????????????????????????? | | ?????????????????????????????????????????????????? | | ?????????????????????????????????????????????????? | | ???????????##########????????????????????????????? | | ???????????# #????????????????????????????? | | ???????????# #????????????????????????????? | | ???????????# ##########???????????????????? | | ???????????# # #???????????????????? | | ???????????# # #???????????????????? | | ???????????# # #???????????????????? | | ???????????# # """ #???????????????????? | | ???????????? # """ #???????????????????? | | ?????????????? ?# """ #???????????????????? | | ?########+######+##+# " #???????????????????? | | ?# # @ #???????????????????? | | ?# # """ #???????????????????? | | ?# + "?" #???????????????????? | | ?# # """ #???????????????????? | | ?# ###+########### #???????????????????? | | ?# # ?????# #???????????????????? | | ?# # """ ?????# #???????????????????? | | ?# # """ #????# #???????????????????? | | ?# # """ #????# #???????????????????? | | ## # #????# #???????????????????? | | # """ #????# #???????????????????? | | # """ #????##########???????????????????? | | # """ #?????????????????????????????????? | | ## # #?????????????????????????????????? | | # ###########????????????????????????????????? | | # # ?????????????????????????????????? | | # # ????????????????????????????????? | | # """" """" #?????????????????????????????? | | # # """" """" #?????????????????????????????? | | # # """" """" #?????????????????????????????? | | # # """" """" ###########???????????????????? | | # # ## #???????????????????? | | ## # ## #???????????????????? | | ?# # "" "" ## #???????????????????? | | ?# # ""R""??# #???????????????????? | +----------------------------------------------------+ Best States ------------- Heat Dissipation 60 Energy Generation 37 Energy Capacity 395 Matter Stores 300 Matter Capacity 300 Sight Range 24 Robot Scan Range 16 Terrain Scan Range 16 Terrain Scan Density 85 ECM Strength 2 Jamming Range 14 Additional Mass Support 9 Propulsion Shielding 66 Evasion (%) 65 Recoil Reduction 4 Offensive Hacking 22 Item Schematics ----------------- Lgt. Regenerative Plating | -3/Testing | Hacked Exp. Field Recycling Unit | -3/Testing | Archive Robot Schematics ------------------ A-27 Freighter | -3/Testing | Archive S-43 Plague | -3/Testing | Archive K-01 Serf | -3/Testing | Archive Fabricated ------------ Nothing Alien Tech Used ----------------- None Achievements -------------- Rampage Challenges ------------ None Game ------ Seed GuidedSpacefoldTube Manual? 0 Play Time 00:56:13 Cumulative 76.5 hours Start 2025.03.18 @ 13:36:15 End 2025.03.18 @ 15:38:31 Sessions 1 Manual Loads 0 Difficulty Rogue Special Mode None Game No. 116 Rogue 116 Adventurer 0 Explorer 0 Win Type - Total 1 Types 1/0/0/0/0/0/0/0/0 Lore% 30 Gallery% 46 Achievement% 39 Wizard Run 0 Options --------- Layout 1 ASCII 1 Keyboard 0 Movement Numpad Keybinds 0 Fullscreen 1 Font 24/Smallcaps Map View 50x35 Zoom Use 0% Tactical HUD 1 Map Filters NONE Filters NONE Steam 1 RUN: 48c44f58-f41d-4ab3-b54f-e0738c20af94